bitfinex-derivatives/quotes_BTCF0:USTF0_20260207
["timestamp","ask_amount","ask_price","bid_price","bid_amount"]
[1770457325128,0.55277446,68198.0,68174.0,0.014678]
[1770457325525,0.55277446,68198.0,68176.0,0.014677]
[1770457325722,0.5534666,68193.0,68163.0,0.11709282]
[1770457325925,0.5534666,68190.0,68166.0,0.014679]
[1770457326431,0.5534666,68190.0,68174.0,0.014678]
[1770457326622,0.5534666,68190.0,68171.0,0.014678]
[1770457327018,0.5534666,68184.0,68157.0,0.11709282]
[1770457327229,0.5534666,68184.0,68160.0,0.014681]
[1770457327432,0.5534666,68184.0,68153.0,0.53972538]
[1770457329325,0.5534666,68184.0,68151.0,0.11685616]
[1770457329636,0.014672,68203.0,68139.0,0.29171087]
[1770457329637,0.5534666,68177.0,68142.0,0.11685616]
[1770457329826,0.5534666,68177.0,68139.0,0.11685616]
[1770457330031,0.5747824,68175.0,68150.0,0.014683]
[1770457330630,0.5747824,68173.0,68150.0,0.014683]
[1770457331324,0.5747824,68171.0,68146.0,0.014684]
[1770457331532,0.5747824,68171.0,68148.0,0.014683]
[1770457332230,0.5747824,68171.0,68142.0,0.55515059]
[1770457332231,0.5747824,68171.0,68150.0,0.014683]
[1770457333534,0.5747824,68171.0,68142.0,0.55415059]
[1770457333735,0.5747824,68171.0,68158.0,0.014681]
[1770457333930,0.5747824,68171.0,68142.0,0.11685616]
[1770457333931,0.5747824,68171.0,68148.0,0.55415059]
[1770457334238,0.5747824,68171.0,68158.0,0.014681]
[1770457339724,0.5747824,68171.0,68160.0,0.014681]
[1770457339929,0.5747824,68171.0,68150.0,0.55415059]
[1770457340637,0.5747824,68171.0,68151.0,0.014683]
[1770457341135,0.5747824,68171.0,68153.0,0.014682]
[1770457342238,0.5747824,68171.0,68150.0,0.001]
[1770457342434,0.5747824,68171.0,68149.0,0.014683]
[1770457343943,0.5747824,68171.0,68151.0,0.014683]
[1770457344644,0.5747824,68171.0,68148.0,0.014683]
[1770457345335,0.5747824,68171.0,68150.0,0.014683]
[1770457346244,0.5747824,68171.0,68134.0,0.2191053]
[1770457346245,0.5747824,68150.0,68133.0,0.00014997]
[1770457346545,0.5747824,68150.0,68136.0,0.014686]
[1770457347547,0.57493237,68149.0,68133.0,0.014686]
[1770457348441,0.57493237,68149.0,68135.0,0.014686]
[1770457348840,0.57493237,68149.0,68127.0,0.014688]
[1770457349443,0.57493237,68149.0,68122.0,0.55415059]
[1770457349743,0.57493237,68149.0,68128.0,0.014688]
[1770457349940,0.57493237,68149.0,68122.0,0.55415059]
[1770457350147,0.58961537,68149.0,68120.0,0.014689]
[1770457350336,0.5747824,68146.0,68120.0,0.014689]
[1770457350643,0.5747824,68144.0,68120.0,0.014689]
[1770457350836,0.5747824,68144.0,68122.0,0.014689]
[1770457351434,0.5747824,68141.0,68107.0,0.55415059]
[1770457351640,0.014685,68140.0,68113.0,0.014691]
[1770457351837,0.5747824,68139.0,68113.0,0.014691]
[1770457352037,0.5747824,68139.0,68115.0,0.01469]
[1770457352736,0.5747824,68139.0,68112.0,0.014691]
[1770457353737,0.5747824,68139.0,68114.0,0.014691]
[1770457354341,0.5747824,68137.0,68114.0,0.014691]
[1770457354545,0.014686,68138.0,68111.0,0.014691]
[1770457354546,0.5747824,68135.0,68111.0,0.014691]
[1770457354743,0.5747824,68135.0,68114.0,0.014691]
[1770457356446,0.5747824,68135.0,68116.0,0.01469]
[1770457356743,0.5747824,68135.0,68111.0,0.5315392]
[1770457358042,0.5747824,68135.0,68115.0,0.01469]
[1770457358847,0.5747824,68135.0,68117.0,0.01469]
[1770457359939,0.5747824,68135.0,68112.0,0.014691]
[1770457360341,0.5747824,68135.0,68110.0,0.5462302]
[1770457360544,0.5747824,68135.0,68112.0,0.014691]
[1770457360740,0.5747824,68135.0,68116.0,0.01469]
[1770457360946,0.5747824,68135.0,68118.0,0.01469]
[1770457361250,0.00014997,68136.0,68120.0,0.014689]
[1770457361749,0.00014997,68136.0,68122.0,0.014689]
[1770457362053,0.57903288,68150.0,68134.0,0.014686]
[1770457362344,0.57903288,68150.0,68129.0,0.5315392]
[1770457362543,0.57903288,68150.0,68136.0,0.014686]
[1770457362944,0.57903288,68163.0,68138.0,0.014686]
[1770457363152,0.57903288,68163.0,68135.0,0.014686]
[1770457363346,0.57903288,68163.0,68137.0,0.014686]
[1770457364052,0.57903288,68163.0,68143.0,0.014684]
[1770457365650,0.57903288,68163.0,68135.0,0.5315392]
[1770457365651,0.57903288,68163.0,68137.0,0.5315392]
[1770457365949,0.57903288,68163.0,68140.0,0.5315392]
[1770457367344,0.57903288,68163.0,68146.0,0.014684]
[1770457368954,0.57903288,68157.0,68128.0,0.014688]
[1770457369151,0.57903288,68152.0,68125.0,0.014688]
[1770457369647,0.014682,68153.0,68103.0,0.21922378]
[1770457369648,0.57903288,68147.0,68112.0,0.5315392]
[1770457369848,0.57903288,68139.0,68112.0,0.5315392]
[1770457370242,0.57903288,68139.0,68116.0,0.01469]
[1770457371053,0.57903288,68139.0,68112.0,0.5315392]
[1770457371248,0.57903288,68139.0,68122.0,0.014689]
[1770457375647,0.57903288,68160.0,68138.0,0.014685]
[1770457376049,0.57903288,68160.0,68133.0,0.5315392]
[1770457376355,0.57903288,68160.0,68142.0,0.014685]
[1770457376553,0.57903288,68160.0,68133.0,0.5315392]
[1770457376751,0.57903288,68160.0,68147.0,0.014683]
[1770457377054,0.57903288,68180.0,68149.0,0.014683]
[1770457377457,0.57903288,68174.0,68131.0,0.5315392]
[1770457377646,0.57903288,68168.0,68137.0,0.014686]
[1770457378851,0.57903288,68166.0,68139.0,0.014685]
[1770457379153,0.57903288,68161.0,68135.0,0.014686]
[1770457379348,0.57903288,68159.0,68135.0,0.014686]
[1770457379554,0.57903288,68159.0,68123.0,0.5315392]
[1770457379760,0.57903288,68159.0,68135.0,0.014686]
[1770457379958,0.59371388,68159.0,68132.0,0.014687]
[1770457380160,0.59371388,68159.0,68115.0,0.5315392]
[1770457380161,0.57903288,68156.0,68115.0,0.5315392]
[1770457380457,0.57903288,68154.0,68115.0,0.5315392]
[1770457380657,0.57903288,68154.0,68133.0,0.014686]
[1770457381753,0.57903288,68154.0,68135.0,0.014686]
[1770457382655,0.57903288,68154.0,68145.0,0.014684]
[1770457382860,0.57903288,68154.0,68147.0,0.014683]
[1770457383358,0.57903288,68154.0,68135.0,0.014686]
[1770457383863,0.57903288,68154.0,68140.0,0.014685]
[1770457384462,0.57903288,68154.0,68143.0,0.014684]
[1770457385255,0.57903288,68154.0,68145.0,0.014684]
[1770457385452,0.47530196,68174.0,68138.0,0.5315392]
[1770457385759,0.47530196,68174.0,68145.0,0.014684]
[1770457386757,0.47530196,68174.0,68150.0,0.014683]
[1770457386957,0.47530196,68174.0,68152.0,0.014682]
[1770457388055,0.47530196,68174.0,68154.0,0.014682]
[1770457388355,0.49227951,68182.0,68155.0,0.53134692]
[1770457388553,0.49227951,68182.0,68162.0,0.01468]
[1770457388756,0.49227951,68182.0,68155.0,0.53134692]
[1770457388757,0.49227951,68182.0,68159.0,0.014681]
[1770457389067,0.49227951,68182.0,68163.0,0.01468]
[1770457389266,0.49227951,68182.0,68160.0,0.014681]
[1770457389650,0.49227951,68182.0,68155.0,0.53134692]
[1770457389858,0.49103845,68199.0,68169.0,0.53887449]
[1770457390151,0.49103845,68185.0,68154.0,0.014682]
[1770457390355,0.49103845,68185.0,68156.0,0.014682]
[1770457390559,0.49103845,68185.0,68158.0,0.014681]
[1770457391067,0.49103845,68185.0,68151.0,0.53887449]
[1770457391364,0.48955947,68199.0,68166.0,0.53887449]
[1770457392364,0.48955947,68199.0,68170.0,0.53887449]
[1770457392560,0.48955947,68199.0,68177.0,0.014677]
[1770457393061,0.48955947,68199.0,68181.0,0.014676]
[1770457393968,0.48955947,68199.0,68178.0,0.014677]
[1770457394261,0.48955947,68199.0,68185.0,0.014675]
[1770457394457,0.48955947,68199.0,68188.0,0.014675]
[1770457395567,0.48955947,68199.0,68185.0,0.014675]
[1770457396064,0.49283391,68207.0,68188.0,0.014675]
[1770457396770,0.49283391,68207.0,68190.0,0.014674]
[1770457396967,0.47830788,68207.0,68198.0,0.014673]
[1770457397160,0.47560318,68222.0,68197.0,0.014673]
[1770457397568,0.47560318,68222.0,68186.0,0.53887449]
[1770457397569,0.47560318,68222.0,68199.0,0.014672]
[1770457397768,0.47560318,68222.0,68188.0,0.53887449]
[1770457398062,0.47560318,68222.0,68200.0,0.014672]
[1770457398460,0.47560318,68222.0,68206.0,0.014671]
[1770457398665,0.47560318,68222.0,68203.0,0.014672]
[1770457400059,0.46174473,68215.0,68183.0,0.53887449]
[1770457400266,0.46174473,68215.0,68194.0,0.014673]
[1770457400570,0.46174473,68215.0,68187.0,0.53887449]
[1770457401071,0.46174473,68215.0,68200.0,0.014672]
[1770457401372,0.0002,68236.0,68202.0,0.014672]
[1770457401373,0.014665,68234.0,68202.0,0.014672]
[1770457401562,0.46582608,68233.0,68202.0,0.014672]
[1770457401764,0.46582608,68220.0,68193.0,0.014674]
[1770457401965,0.46582608,68220.0,68183.0,0.53887449]
[1770457402170,0.46582608,68220.0,68198.0,0.014673]
[1770457402365,0.46582608,68220.0,68200.0,0.014672]
[1770457404168,0.46582608,68220.0,68202.0,0.014672]
[1770457405461,0.46582608,68220.0,68195.0,0.53887449]
[1770457405462,0.46582608,68220.0,68199.0,0.014672]
[1770457405658,0.46582608,68220.0,68201.0,0.014672]
[1770457406063,0.46582608,68220.0,68195.0,0.53887449]
[1770457406064,0.47508202,68217.0,68191.0,0.014674]
[1770457406267,0.47508202,68217.0,68186.0,0.53887449]
[1770457406467,0.47508202,68217.0,68197.0,0.014673]
[1770457406973,0.47508202,68217.0,68196.0,0.014673]
[1770457407370,0.47508202,68217.0,68198.0,0.014673]
[1770457409578,0.47265144,68210.0,68188.0,0.014675]
[1770457410178,0.47265144,68210.0,68185.0,0.014675]
[1770457410377,0.47265144,68210.0,68187.0,0.014675]
[1770457410678,0.47265144,68210.0,68186.0,0.014675]
[1770457410975,0.47265144,68210.0,68176.0,0.55355149]
[1770457411171,0.47265144,68210.0,68185.0,0.014675]
[1770457413479,0.014668,68222.0,68185.0,0.014675]
[1770457413480,0.45805749,68208.0,68185.0,0.014675]
[1770457414280,0.45805749,68208.0,68184.0,0.014676]
[1770457414468,0.45805749,68208.0,68176.0,0.53887449]
[1770457414469,0.014671,68206.0,68181.0,0.014676]
[1770457414779,0.45805749,68205.0,68181.0,0.014676]
[1770457416179,0.45805749,68205.0,68176.0,0.53887449]
[1770457416582,0.45805749,68205.0,68182.0,0.014676]
[1770457416780,0.45805749,68205.0,68176.0,0.53887449]
[1770457417378,0.45805749,68205.0,68176.0,0.65491439]
[1770457418386,0.45805749,68205.0,68182.0,0.014676]
[1770457419184,0.45805749,68205.0,68181.0,0.014676]
[1770457420481,0.45805749,68205.0,68186.0,0.014675]
[1770457420673,0.45805749,68205.0,68183.0,0.014676]
[1770457421584,0.45805749,68205.0,68182.0,0.57092842]
[1770457421780,0.45805749,68205.0,68182.0,0.58560442]
[1770457426190,0.45805749,68205.0,68182.0,0.57092842]
[1770457426391,0.47272849,68205.0,68182.0,0.57092842]
[1770457426690,0.45805749,68205.0,68182.0,0.57092842]
[1770457428391,0.46313741,68227.0,68204.0,0.014671]
[1770457428592,0.47780441,68227.0,68201.0,0.58560042]
[1770457428788,0.46313741,68227.0,68201.0,0.58560042]
[1770457429789,0.46722199,68208.0,68184.0,0.1160399]
[1770457430000,0.46722199,68208.0,68181.0,0.1160399]
[1770457430289,0.46722199,68208.0,68180.0,0.57092842]
[1770457430290,0.46722199,68205.0,68180.0,0.68696832]
[1770457430479,0.46722199,68205.0,68180.0,0.57092842]
[1770457430680,0.46722199,68188.0,68170.0,0.1160399]
[1770457430896,0.46722199,68182.0,68156.0,0.17505136]
[1770457431191,0.46678262,68180.0,68155.0,0.57111592]
[1770457431889,0.0002,68204.0,68155.0,0.0001875]
[1770457431890,0.46678262,68171.0,68155.0,0.0001875]
[1770457432083,0.46678262,68171.0,68141.0,0.014685]
[1770457432887,0.46678262,68171.0,68141.0,0.58561342]
[1770457433082,0.47048058,68169.0,68141.0,0.58561342]
[1770457433894,0.47048058,68159.0,68133.0,0.57092842]
[1770457434088,0.014681,68160.0,68131.0,0.014687]
[1770457434089,0.47048058,68157.0,68131.0,0.014687]
[1770457434287,0.47048058,68151.0,68125.0,0.57092842]
[1770457434482,0.014678,68173.0,68125.0,0.57092842]
[1770457434483,0.47060014,68150.0,68125.0,0.57092842]
[1770457434993,0.47419373,68150.0,68121.0,0.57092842]
[1770457435187,0.47407417,68148.0,68121.0,0.57092842]
[1770457435388,0.47407417,68148.0,68122.0,0.014689]
[1770457437994,0.47407417,68148.0,68121.0,0.57092842]
[1770457438393,0.47496185,68146.0,68113.0,0.57110762]
[1770457438593,0.47496185,68146.0,68117.0,0.01469]
[1770457438795,0.47496185,68146.0,68124.0,0.014688]
[1770457439298,0.00014099,68147.0,68129.0,0.58561542]
[1770457439488,0.00014099,68147.0,68129.0,0.57092842]
[1770457440685,0.073384,68181.0,68113.0,0.0001792]
[1770457440686,0.47531311,68162.0,68134.0,0.57092842]
[1770457440892,0.4754541,68160.0,68136.0,0.57092842]
[1770457441185,0.47545032,68158.0,68133.0,0.014686]
[1770457441391,0.47545032,68170.0,68138.0,0.58561342]
[1770457441790,0.47545032,68168.0,68138.0,0.58561342]
[1770457442595,0.47545032,68161.0,68130.0,0.57092842]
[1770457442900,0.47545032,68159.0,68130.0,0.57092842]
[1770457443887,0.47545032,68159.0,68131.0,0.014687]
[1770457444094,0.47545032,68159.0,68131.0,0.58561542]
[1770457444295,0.47545032,68159.0,68131.0,0.57092842]
[1770457444696,0.47545032,68159.0,68131.0,0.58561542]
[1770457444895,0.47545032,68159.0,68131.0,0.57092842]
[1770457446387,0.014681,68158.0,68131.0,0.57092842]
[1770457446593,0.46636717,68157.0,68131.0,0.57092842]
[1770457447087,0.46698974,68154.0,68131.0,0.57092842]
[1770457450102,0.46698974,68154.0,68132.0,0.014687]
[1770457450404,4.651e-05,68160.0,68137.0,0.55979971]
[1770457450703,4.651e-05,68160.0,68137.0,0.54511371]
[1770457450704,0.46974047,68159.0,68137.0,0.54511371]
[1770457450903,0.48442147,68159.0,68137.0,0.54511371]
[1770457451600,0.46974047,68159.0,68137.0,0.54511371]
[1770457452000,0.46974047,68159.0,68139.0,0.54511371]
[1770457452198,4.651e-05,68160.0,68142.0,0.54511371]
[1770457453104,4.651e-05,68160.0,68142.0,0.55979871]
[1770457453497,4.651e-05,68160.0,68144.0,0.55979771]
[1770457454495,0.46796159,68166.0,68147.0,0.54511371]
[1770457455406,0.46796159,68166.0,68149.0,0.55979671]
[1770457455908,0.46796159,68166.0,68149.0,0.54511371]
[1770457456104,0.47369515,68162.0,68135.0,0.014686]
[1770457456406,0.45901415,68162.0,68137.0,0.014686]
[1770457456606,0.45901415,68162.0,68139.0,0.014685]
[1770457456800,0.45901415,68162.0,68139.0,0.55979871]
[1770457457005,0.45901415,68162.0,68141.0,0.014685]
[1770457457902,0.45901415,68162.0,68143.0,0.55979771]
[1770457458304,0.45901415,68162.0,68143.0,0.54511371]
[1770457459107,0.45901415,68162.0,68144.0,0.55979771]
[1770457459403,0.46653049,68171.0,68146.0,0.55979771]
[1770457459600,0.46653049,68171.0,68146.0,0.54511371]
[1770457460001,0.46653049,68169.0,68146.0,0.54511371]
[1770457460395,0.46653049,68169.0,68143.0,0.014684]
[1770457460396,0.46653049,68169.0,68147.0,0.55979771]
[1770457460605,0.46653049,68169.0,68147.0,0.54511371]
[1770457460905,0.46653049,68166.0,68140.0,0.55979871]
[1770457461106,0.47110245,68164.0,68140.0,0.55979871]
[1770457461605,0.47110245,68164.0,68142.0,0.014685]
[1770457462199,0.47110245,68173.0,68148.0,0.014683]
[1770457462401,0.47110245,68173.0,68148.0,0.55979671]
[1770457463610,0.47110245,68173.0,68150.0,0.014683]
[1770457463804,0.47110245,68173.0,68148.0,0.54511371]
[1770457464000,0.47110245,68173.0,68151.0,0.54511371]
[1770457464198,0.014676,68181.0,68156.0,0.55979571]
[1770457464199,0.46871003,68181.0,68156.0,0.55979571]
[1770457464794,0.48338703,68180.0,68156.0,0.55979571]
[1770457466309,0.46871003,68180.0,68156.0,0.55979571]
[1770457466507,0.014675,68189.0,68162.0,0.54511371]
[1770457466707,0.47099134,68188.0,68168.0,0.014679]
[1770457467008,0.47099134,68188.0,68165.0,0.55979371]
[1770457467308,0.47099134,68188.0,68167.0,0.55979271]
[1770457467500,0.47099134,68188.0,68169.0,0.014679]
[1770457468306,0.47099134,68188.0,68171.0,0.014678]
[1770457468509,0.47099134,68188.0,68168.0,0.014679]
[1770457468707,0.47099134,68188.0,68167.0,0.54511371]
[1770457469209,0.47099134,68188.0,68153.0,0.014682]
[1770457469210,0.47361287,68198.0,68170.0,0.54511371]
[1770457469402,0.48828587,68198.0,68172.0,0.014678]
[1770457469607,0.47361287,68193.0,68169.0,0.014679]
[1770457470004,0.47361287,68193.0,68171.0,0.014678]
[1770457470403,0.48828687,68193.0,68169.0,0.54511371]
[1770457470703,0.47361287,68188.0,68162.0,0.54511371]
[1770457470908,0.48179704,68173.0,68149.0,0.17497173]
[1770457471108,0.48179704,68169.0,68148.0,0.54511371]
[1770457471511,0.49647604,68169.0,68148.0,0.54511371]
[1770457471808,0.49647604,68169.0,68144.0,0.014684]
[1770457472308,0.48179704,68169.0,68149.0,0.54511371]
[1770457473816,0.48179704,68169.0,68150.0,0.014683]
[1770457474311,0.48179704,68169.0,68142.0,0.54511371]
[1770457474515,0.48179704,68169.0,68145.0,0.014684]
[1770457475104,0.48179704,68169.0,68147.0,0.014684]
[1770457475912,0.47617882,68179.0,68148.0,0.56916718]
[1770457476809,0.47617882,68179.0,68154.0,0.56916718]
[1770457477206,0.49085582,68179.0,68154.0,0.56916718]
[1770457477405,0.47617882,68179.0,68156.0,0.58384918]
[1770457479615,0.47617882,68179.0,68156.0,0.56916718]
[1770457480018,0.47617882,68179.0,68155.0,0.014682]
[1770457480417,0.47617882,68179.0,68157.0,0.014681]
[1770457480913,0.47617882,68179.0,68150.0,0.56916718]
[1770457480914,0.49085582,68179.0,68150.0,0.56916718]
[1770457481310,0.49085582,68179.0,68153.0,0.014682]
[1770457481716,0.47865731,68175.0,68150.0,0.58385018]
[1770457482213,0.47865731,68175.0,68152.0,0.014682]
[1770457482717,0.47865731,68175.0,68150.0,0.56916718]
[1770457482718,0.47865731,68175.0,68154.0,0.014682]
[1770457483117,0.47865731,68175.0,68154.0,0.56916718]
[1770457483311,0.47865731,68175.0,68154.0,0.58384918]
[1770457483619,0.47865731,68175.0,68156.0,0.014682]
[1770457484222,0.47865731,68175.0,68153.0,0.56916718]
[1770457484415,0.47865731,68175.0,68152.0,0.014682]
[1770457485413,0.47865731,68175.0,68154.0,0.014682]
[1770457485921,0.47865731,68175.0,68151.0,0.014683]
[1770457486117,0.47865731,68175.0,68153.0,0.014682]
[1770457486723,0.47865731,68175.0,68150.0,0.014683]
[1770457487220,0.47865731,68175.0,68152.0,0.014682]
[1770457488112,0.47865731,68175.0,68149.0,0.56916718]
[1770457489217,0.47865731,68175.0,68150.0,0.014683]
[1770457489727,0.47865731,68175.0,68152.0,0.014682]
[1770457490626,0.47865731,68175.0,68154.0,0.014682]
[1770457490923,0.014674,68193.0,68139.0,0.21893026]
[1770457490924,0.48884341,68171.0,68139.0,0.56916718]
[1770457491122,0.48961875,68187.0,68160.0,0.014681]
[1770457491315,0.48961875,68181.0,68157.0,0.56916718]
[1770457491520,0.48961875,68179.0,68153.0,0.014682]
[1770457491720,0.48961875,68177.0,68153.0,0.014682]
[1770457492228,0.48961875,68177.0,68152.0,0.014683]
[1770457492819,0.48961875,68177.0,68154.0,0.014682]
[1770457494222,0.50429575,68177.0,68151.0,0.014683]
[1770457494429,0.48961875,68177.0,68151.0,0.014683]
[1770457494629,0.5123309,68174.0,68150.0,0.56916718]
[1770457495424,0.5123309,68174.0,68150.0,0.58385018]
[1770457496630,0.5270089,68174.0,68150.0,0.56916718]
[1770457496819,0.52560302,68171.0,68150.0,0.56916718]
[1770457498827,0.52028039,68169.0,68144.0,0.58385118]
[1770457500635,0.52028039,68169.0,68147.0,0.014684]
[1770457501838,0.51968528,68155.0,68133.0,0.11718591]
[1770457502036,0.51968528,68155.0,68132.0,0.68635309]
[1770457502532,0.51968528,68155.0,68132.0,0.56916718]
[1770457504337,0.53436728,68155.0,68132.0,0.56916718]
[1770457505637,0.51968528,68155.0,68132.0,0.56916718]
[1770457507338,0.54304494,68162.0,68135.0,0.56873081]
[1770457508145,0.52836394,68180.0,68141.0,0.56873081]
[1770457508351,0.014676,68183.0,68160.0,0.56873081]
[1770457508746,0.014676,68183.0,68145.0,0.13186991]
[1770457508747,0.52856394,68199.0,68174.0,0.58340881]
[1770457508941,0.52836394,68196.0,68159.0,0.56873081]
[1770457509146,0.5261375,68192.0,68167.0,0.58340981]
[1770457509546,0.5261375,68192.0,68170.0,0.57505477]
[1770457511647,0.51678242,68183.0,68154.0,0.57505477]
[1770457511953,0.53146142,68170.0,68148.0,0.57505477]
[1770457513749,0.014679,68168.0,68148.0,0.57505477]
[1770457513949,0.52241714,68167.0,68138.0,0.014685]
[1770457514145,0.52241714,68167.0,68139.0,0.57505477]
[1770457514347,0.52241714,68163.0,68139.0,0.57505477]
[1770457515459,0.53709714,68163.0,68139.0,0.57505477]
[1770457515659,0.53709714,68163.0,68135.0,0.014686]
[1770457516051,0.52431377,68153.0,68125.0,0.58974277]
[1770457516851,0.53899777,68145.0,68125.0,0.57505477]
[1770457517052,0.53899777,68145.0,68116.0,0.57505477]
[1770457517252,0.53899777,68145.0,68113.0,0.0001792]
[1770457517253,0.53899777,68145.0,68117.0,0.58974477]
[1770457517459,0.52143878,68142.0,68117.0,0.57505477]
[1770457518151,0.52143878,68142.0,68119.0,0.57505477]
[1770457518351,0.53612178,68149.0,68119.0,0.57505477]
[1770457518655,0.53612178,68149.0,68120.0,0.014689]
[1770457518858,0.53612178,68149.0,68121.0,0.57505477]
[1770457519054,0.53488575,68146.0,68121.0,0.57505477]
[1770457519951,0.53488575,68144.0,68116.0,0.01469]
[1770457520449,0.53488575,68144.0,68116.0,0.58974477]
[1770457521158,0.53488575,68144.0,68116.0,0.57505477]
[1770457521559,0.53488575,68144.0,68113.0,0.0148702]
[1770457521560,0.53953678,68133.0,68113.0,0.0001792]
[1770457522360,0.53953678,68133.0,68113.0,0.57523397]
[1770457529563,0.55175682,68143.0,68116.0,0.57505477]
[1770457529772,0.56643982,68149.0,68122.0,0.57505477]
[1770457530165,0.56643982,68149.0,68124.0,0.57505477]
[1770457530471,0.55175682,68146.0,68124.0,0.57505477]
[1770457531967,0.55318583,68167.0,68138.0,0.57505477]
[1770457532157,0.014681,68158.0,68130.0,0.57505477]
[1770457532364,0.56786783,68157.0,68130.0,0.57505477]
[1770457532562,0.55318583,68157.0,68132.0,0.014687]
[1770457533068,0.55318583,68157.0,68136.0,0.58974077]
[1770457534165,0.55312382,68164.0,68139.0,0.57505477]
[1770457534370,0.55312382,68164.0,68147.0,0.014684]
[1770457534669,0.55312382,68164.0,68144.0,0.58973877]
[1770457535169,0.55312382,68164.0,68146.0,0.014684]
[1770457535972,0.55312382,68164.0,68148.0,0.014683]
[1770457536471,0.014675,68190.0,68146.0,0.56935435]
[1770457536472,0.53361428,68189.0,68152.0,0.014682]
[1770457536659,0.014676,68182.0,68159.0,0.56935435]
[1770457536865,0.014677,68176.0,68153.0,0.014682]
[1770457537170,0.53361428,68175.0,68153.0,0.014682]
[1770457537775,0.53361428,68175.0,68155.0,0.014682]
[1770457539074,0.073561,68203.0,68149.0,0.56935435]
[1770457539075,0.53570981,68196.0,68161.0,0.56935435]
[1770457539378,0.0002,68203.0,68179.0,0.58403135]
[1770457539580,0.0002,68203.0,68182.0,0.56935435]
[1770457539772,0.53470981,68212.0,68185.0,0.58402935]
[1770457540874,0.53470981,68212.0,68168.0,0.014679]
[1770457540875,0.53470981,68212.0,68188.0,0.58402935]
[1770457541389,0.53470981,68212.0,68172.0,0.56935435]
[1770457541679,0.5355576,68207.0,68172.0,0.56935435]
[1770457542673,0.5355576,68207.0,68179.0,0.56935435]
[1770457542873,0.5355576,68207.0,68180.0,0.014676]
[1770457543080,0.5355576,68207.0,68180.0,0.58403035]
[1770457543378,0.5332104,68215.0,68188.0,0.56935435]
[1770457543577,0.5332104,68215.0,68192.0,0.56935435]
[1770457546581,0.54229847,68208.0,68179.0,0.56935435]
[1770457546883,0.54229847,68208.0,68186.0,0.58402935]
[1770457547275,0.54229847,68208.0,68170.0,0.014679]
[1770457547276,0.54229847,68208.0,68189.0,0.58402935]
[1770457547584,0.014665,68236.0,68189.0,0.58402935]
[1770457547585,0.53263693,68217.0,68189.0,0.58402935]
[1770457548081,0.53263693,68217.0,68192.0,0.56935435]
[1770457548279,0.014667,68225.0,68198.0,0.56935435]
[1770457548481,0.53263693,68224.0,68198.0,0.56935435]
[1770457549275,0.53263693,68224.0,68199.0,0.014672]
[1770457549478,0.53263693,68224.0,68199.0,0.58402635]
[1770457549681,0.53263693,68224.0,68202.0,0.014672]
[1770457550279,0.53263693,68224.0,68199.0,0.58402635]
[1770457551783,0.54107228,68217.0,68190.0,0.58402835]
[1770457552083,0.54107228,68217.0,68166.0,0.073399]
[1770457552084,0.54107228,68221.0,68185.0,0.56935435]
[1770457552380,0.54107228,68221.0,68194.0,0.014673]
[1770457552587,0.54107228,68221.0,68195.0,0.56935435]
[1770457552984,0.54107228,68218.0,68195.0,0.56935435]
[1770457554583,0.54107228,68218.0,68186.0,0.56935435]
[1770457554788,0.53061707,68201.0,68175.0,0.56935435]
[1770457555182,0.53061707,68201.0,68179.0,0.014677]
[1770457555786,0.53061707,68201.0,68179.0,0.58403135]
[1770457556286,0.014671,68206.0,68182.0,0.56935435]
[1770457556592,0.517412,68203.0,68182.0,0.56935435]
[1770457557489,0.50207311,68201.0,68174.0,0.58403235]
[1770457557688,0.50207311,68197.0,68174.0,0.56935435]
[1770457560598,0.014673,68196.0,68174.0,0.56935435]
[1770457561092,0.014675,68186.0,68165.0,0.56935435]
[1770457561391,0.50857281,68204.0,68169.0,0.56935435]
[1770457561585,0.50857281,68204.0,68175.0,0.56935435]
[1770457561790,0.50857281,68204.0,68162.0,0.01481678]
[1770457561791,0.50857281,68200.0,68168.0,0.56935435]
[1770457562089,0.50857281,68200.0,68162.0,0.00013678]
[1770457562090,0.014677,68179.0,68162.0,0.00013678]
[1770457562591,0.50857281,68181.0,68162.0,0.00013678]
[1770457562787,0.50857281,68181.0,68157.0,0.56935435]
[1770457563693,0.51237517,68175.0,68149.0,0.56935435]
[1770457563887,0.51251195,68174.0,68149.0,0.56935435]
[1770457564394,0.014681,68162.0,68136.0,0.56935435]
[1770457564589,0.00011429,68161.0,68137.0,0.014686]
[1770457564789,0.00011429,68161.0,68138.0,0.56935435]
[1770457565187,0.50669586,68161.0,68138.0,0.56935435]
[1770457565588,0.50669586,68161.0,68127.0,0.56935435]
[1770457565899,0.50658157,68158.0,68127.0,0.58404235]
[1770457566489,0.52126357,68157.0,68127.0,0.58404235]
[1770457566792,0.52126557,68146.0,68123.0,0.00016576]
[1770457566995,0.00010468,68145.0,68123.0,0.00016576]
[1770457567192,0.00010468,68145.0,68123.0,0.53278295]
[1770457567394,0.073387,68178.0,68123.0,0.53278295]
[1770457567395,0.014681,68160.0,68129.0,0.53261719]
[1770457567599,0.52204336,68163.0,68131.0,0.53261719]
[1770457567801,0.43191013,68193.0,68138.0,0.53261719]
[1770457567802,0.014679,68170.0,68138.0,0.53261719]
[1770457567998,0.014679,68170.0,68142.0,0.53261719]
[1770457569403,0.50736336,68171.0,68142.0,0.53261719]
[1770457569597,0.51316367,68160.0,68130.0,0.5610046]
[1770457569798,0.014683,68151.0,68130.0,0.5610046]
[1770457569999,0.52784667,68151.0,68123.0,0.00016576]
[1770457570202,0.51316367,68148.0,68123.0,0.00016576]
[1770457570399,0.52784767,68148.0,68123.0,0.00016576]
[1770457571292,0.51316367,68148.0,68124.0,0.5610046]
[1770457571600,0.014682,68154.0,68124.0,0.5610046]
[1770457571801,0.51614913,68153.0,68124.0,0.5610046]
[1770457572000,0.51614913,68150.0,68124.0,0.5610046]
[1770457572202,0.51614913,68148.0,68123.0,0.00016576]
[1770457572405,0.51614913,68146.0,68123.0,0.00016576]
[1770457574207,0.51646304,68144.0,68123.0,0.00016576]
[1770457574602,0.014685,68140.0,68123.0,0.00016576]
[1770457574801,0.51646304,68139.0,68123.0,0.00016576]
[1770457576409,0.52694472,68147.0,68123.0,0.56117036]
[1770457576599,0.014684,68146.0,68123.0,0.56117036]
[1770457577408,0.51226072,68147.0,68125.0,0.5610046]
[1770457577610,0.073384,68181.0,68127.0,0.5610046]
[1770457577611,0.5122066,68155.0,68127.0,0.5610046]
[1770457577805,0.5122066,68155.0,68129.0,0.5610046]
[1770457578106,0.5268886,68155.0,68129.0,0.5610046]
[1770457578504,0.5122066,68155.0,68131.0,0.5610046]
[1770457578709,0.5122066,68173.0,68131.0,0.5610046]
[1770457579011,0.5122066,68168.0,68133.0,0.5610046]
[1770457579411,0.5122066,68168.0,68137.0,0.5610046]
[1770457579710,0.014681,68158.0,68137.0,0.5610046]